fUST/lending_fUST_20250531
["ID","MTS","AMOUNT","RATE_DAILY","PERIOD"]
[363307880,1748667041880,-430.0,0.00020597,2]
[363307882,1748667041889,-626.79,0.00020597,2]
[363307884,1748667041900,-430.0,0.00020597,2]
[363307886,1748667041910,-430.0,0.00020597,2]
[363307887,1748667041918,-153.77448128,0.0002065,2]
[363307889,1748667041928,-802.78118818,0.00020762,3]
[363307891,1748667041937,-151.0,0.000208,3]
[363307893,1748667041947,-967.06,0.00020834,2]
[363307894,1748667041956,-1337.06,0.00020835,2]
[363307896,1748667041965,-477.04,0.00020835,2]
[363307898,1748667041974,-1547.29,0.00020835,2]
[363307900,1748667041984,-621.33,0.00020835,2]
[363307901,1748667041993,-535.52,0.00020835,2]
[363307903,1748667042002,-430.0,0.00020835,2]
[363307905,1748667042011,-430.0,0.00020871,2]
[363307907,1748667042020,-474.41,0.00020871,2]
[363307908,1748667042030,-1228.15,0.00020871,2]
[363307910,1748667042039,-436.17,0.00020871,2]
[363307912,1748667042048,-430.0,0.00020871,2]
[363307914,1748667042057,-430.0,0.00020871,2]
[363307915,1748667042066,-626.79,0.00020871,2]
[363307917,1748667042075,-430.0,0.00020871,2]
[363307919,1748667042084,-157.5499743,0.00020877,2]
[363307921,1748667042093,-601.1127309,0.00020945,2]
[363307922,1748667042103,-802.78118818,0.00020969,4]
[363307924,1748667042112,-2200.0,0.00020984,2]
[363307926,1748667042121,-5000.0,0.0002099,2]
[363307927,1748667042130,-2222.61924346,0.00021006,2]
[363307929,1748667042140,-96885.50337,0.00021096,2]
[363307931,1748667042149,-962.0,0.00021098,2]
[363307933,1748667042159,-708.0,0.00021098,2]
[363307934,1748667042168,-2228.0,0.00021098,2]
[363307935,1748667042178,-150.0,0.00021098,2]
[363307936,1748667042187,-150.0,0.00021098,2]
[363307937,1748667042197,-151.0,0.000211,4]
[363307938,1748667042206,-1337.06,0.00021109,2]
[363307939,1748667042215,-477.04,0.00021109,2]
[363307940,1748667042224,-1547.29,0.00021109,2]
[363307941,1748667042233,-621.33,0.00021109,2]
[363307942,1748667042242,-535.52,0.00021109,2]
[363307943,1748667042251,-430.0,0.00021109,2]
[363307944,1748667042261,-430.0,0.00021145,2]
[363307945,1748667042270,-474.41,0.00021145,2]
[363307946,1748667042279,-1228.15,0.00021145,2]
[363307947,1748667042288,-436.17,0.00021145,2]
[363307949,1748667042298,-430.0,0.00021145,2]
[363307951,1748667042307,-430.0,0.00021145,2]
[363307953,1748667042316,-626.79,0.00021145,2]
[363307955,1748667042325,-430.0,0.00021145,2]
[363307957,1748667042335,-202.33915,0.00021146,2]
[363307959,1748667042343,-202.33915,0.00021146,2]
[363307960,1748667042352,-157.5499743,0.00021151,2]
[363307961,1748667042362,-601.1127309,0.00021175,2]
[363307962,1748667042371,-802.78118818,0.00021176,4]
[363307963,1748667042381,-153.77448128,0.00021275,2]
[363307964,1748667042390,-802.78118818,0.00021383,5]
[363307965,1748667042400,-1337.06,0.00021383,2]
[363307966,1748667042409,-477.04,0.00021383,2]
[363307967,1748667042418,-1547.29,0.00021383,2]
[363307968,1748667042427,-621.33,0.00021383,2]
[363307969,1748667042438,-535.52,0.00021383,2]
[363307970,1748667042447,-430.0,0.00021383,2]
[363307971,1748667042457,-151.0,0.000214,4]
[363307972,1748667042466,-1317.47754355,0.000214,4]
[363307973,1748667042476,-601.1127309,0.00021415,2]
[363307974,1748667042486,-430.0,0.00021419,2]
[363307975,1748667042495,-474.41,0.00021419,2]
[363307976,1748667042504,-1228.15,0.00021419,2]
[363307977,1748667042514,-436.17,0.00021419,2]
[363307978,1748667042523,-579.56,0.00021419,2]
[363307979,1748667042533,-430.0,0.00021419,2]
[363307980,1748667042543,-626.79,0.00021419,2]
[363307981,1748667042553,-430.0,0.00021419,2]
[363307982,1748667042563,-157.5499743,0.00021425,2]
[363307983,1748667042573,-600.0,0.00021452,2]
[363307984,1748667042583,-364.3142842,0.00021452,2]
[363307985,1748667042592,-364.3142842,0.00021452,2]
[363307986,1748667042602,-364.1762952,0.00021452,2]
[363307987,1748667042611,-500.0,0.000215,2]
[363307988,1748667042621,-500.0,0.000215,2]
[363307989,1748667042635,-500.0,0.000215,2]
[363307990,1748667042644,-500.0,0.000215,2]
[363307991,1748667042654,-500.0,0.000215,2]
[363307992,1748667042663,-500.0,0.000215,2]
[363307993,1748667042674,-219.60125726,0.0002154,29]
[363307994,1748667042683,-1820.805116,0.0002156,3]
[363307995,1748667042692,-802.78118818,0.0002159,5]
[363307996,1748667042703,-1337.06,0.00021657,2]
[363307997,1748667042712,-477.04,0.00021657,2]
[363307998,1748667042722,-1547.29,0.00021657,2]
[363307999,1748667042731,-621.33,0.00021657,2]
[363308000,1748667042741,-535.52,0.00021657,2]
[363308001,1748667042750,-430.0,0.00021657,2]
[363308002,1748667042759,-219.60125726,0.00021679,30]
[363308003,1748667042768,-430.0,0.00021693,2]
[363308004,1748667042778,-474.41,0.00021693,2]
[363308005,1748667042787,-1228.15,0.00021693,2]
[363308006,1748667042796,-436.17,0.00021693,2]
[363308007,1748667042806,-430.0,0.00021693,2]
[363308008,1748667042815,-626.79,0.00021693,2]
[363308009,1748667042825,-430.0,0.00021693,2]
[363308010,1748667042834,-5000.0,0.00021697,2]
[363308011,1748667042843,-151.0,0.000217,4]
[363308012,1748667042853,-601.1127309,0.0002174,2]
[363308013,1748667042862,-802.78118818,0.00021797,6]
[363308014,1748667042871,-215.0738,0.00021811,2]
[363308015,1748667042880,-219.60125726,0.00021819,30]
[363308016,1748667042889,-1320.210149,0.00021857,2]
[363308017,1748667042899,-1320.210149,0.00021857,2]
[363308018,1748667042908,-312.5513002,0.00021863,2]
[363308019,1748667042917,-222.4152288,0.000219,2]
[363308020,1748667042926,-200.0,0.000219,3]
[363308021,1748667042936,-153.77448128,0.000219,2]
[363308022,1748667042945,-12500.0,0.00021917,2]
[363308023,1748667042954,-200.0,0.00021917,2]
[363308024,1748667042963,-519.81,0.00021917,2]
[363308025,1748667042973,-12500.0,0.00021917,2]
[363308026,1748667042982,-3742.59133857,0.00021917,2]
[363308027,1748667042991,-1337.06,0.00021931,2]
[363308028,1748667043000,-477.04,0.00021931,2]
[363308029,1748667043010,-1547.29,0.00021931,2]
[363308030,1748667043019,-621.33,0.00021931,2]
[363308032,1748667043030,-535.52,0.00021931,2]
[363308033,1748667043039,-219.60125726,0.00021959,30]
[363308034,1748667043048,-1000.0,0.0002196,5]
[363308035,1748667043057,-430.0,0.00021967,2]
[363308036,1748667043066,-474.41,0.00021967,2]
[363308037,1748667043075,-1228.15,0.00021967,2]
[363308038,1748667043085,-436.17,0.00021967,2]
[363308039,1748667043094,-430.0,0.00021967,2]
[363308040,1748667043104,-626.79,0.00021967,2]
[363308041,1748667043113,-430.0,0.00021967,2]
[363308042,1748667043125,-151.0,0.00021968,7]
[363308043,1748667043134,-151.0,0.00021968,7]
[363308044,1748667043144,-500.0,0.00021973,2]
[363308045,1748667043154,-500.0,0.00021973,2]
[363308046,1748667043163,-503.32993112,0.00021973,2]
[363308047,1748667043173,-500.0,0.00021973,2]
[363308048,1748667043182,-399.17394173,0.00021973,2]
[363308049,1748667043191,-500.0,0.00021973,2]
[363308050,1748667043200,-500.0,0.00021973,2]
[363308051,1748667043210,-575.30694928,0.00021973,2]
[363308052,1748667043219,-500.93515612,0.00021973,2]
[363308053,1748667043228,-500.0,0.00021973,2]
[363308054,1748667043237,-500.0,0.00021973,2]
[363308055,1748667043246,-400.49783772,0.00021973,2]
[363308056,1748667043255,-500.0,0.00021973,2]
[363308057,1748667043265,-500.0,0.00021973,2]
[363308058,1748667043274,-500.37680948,0.00021973,2]
[363308059,1748667043283,-341.58993269,0.00021973,2]
[363308060,1748667043293,-500.0,0.00021973,2]
[363308061,1748667043302,-500.0,0.00021973,2]
[363308062,1748667043311,-500.0,0.00021973,2]
[363308063,1748667043320,-500.0,0.00021973,2]
[363308064,1748667043330,-500.0,0.00021973,2]
[363308065,1748667043339,-500.0,0.00021973,2]
[363308066,1748667043348,-500.0,0.00021973,2]
[363308067,1748667043357,-501.60266877,0.00021973,2]
[363308068,1748667043366,-500.0,0.00021973,2]
[363308069,1748667043377,-500.0,0.00021973,2]
[363308070,1748667043386,-502.84122441,0.00021973,2]
[363308071,1748667043397,-215.99549423,0.00021973,2]
[363308072,1748667043406,-450.3400897,0.00021973,2]
[363308073,1748667043416,-160.18894433,0.00021973,2]
[363308074,1748667043541,-500.0,0.00021973,2]
[363308075,1748667043551,-500.0,0.00021973,2]
[363308076,1748667043560,-500.0,0.00021973,2]
[363308077,1748667043569,-500.0,0.00021973,2]
[363308078,1748667043579,-500.0,0.00021973,2]
[363308079,1748667043589,-600.0,0.00021973,2]
[363308080,1748667043598,-505.01652487,0.00021973,2]
[363308081,1748667043608,-500.0,0.00021973,2]
[363308082,1748667043619,-538.80581164,0.00021973,2]
[363308083,1748667043635,-554.54632245,0.00021973,2]
[363308084,1748667043644,-500.0,0.00021973,2]
[363308085,1748667043655,-1000.0,0.0002198,5]
[363308086,1748667043664,-184539.70822379,0.00021999,2]
[363308087,1748667043674,-28863.15065778,0.00022,3]
[363308088,1748667043683,-91079.38575148,0.00022,2]
[363308089,1748667043806,-4957.81781365,0.00022,2]
[363308090,1748667043818,-8328.21001011,0.00022,2]
[363308091,1748667043831,-3575.9443928,0.00022,2]
[363308092,1748667043842,-1868.20223728,0.00022,2]
[363308093,1748667043854,-13379.95809082,0.00022,2]
[363308094,1748667043866,-23867.24010615,0.00022,2]
[363308095,1748667043875,-500.0,0.00022,8]
[363308096,1748667043884,-2000.0,0.00022,2]
[363308097,1748667043894,-38730.0481482,0.00022,2]
[363308098,1748667043905,-34439.60306428,0.00022,2]
[363308099,1748667043921,-562.7876311,0.00021108,2]
[363308100,1748667044055,-300.0,0.00018952,2]
[363308101,1748667044064,-404.2723689,0.00021108,2]
[363308102,1748667044074,-967.06,0.00021382,2]
[363308103,1748667044084,-967.06,0.00021656,2]
[363308104,1748667044093,-967.06,0.0002193,2]
[363308105,1748667044103,-65486.43937739,0.00022,2]
[363308106,1748667044114,-2165.95833321,0.00022,2]
[363308114,1748667045872,-430.0,0.00016998,2]
[363308115,1748667045881,-400.6395,0.00017272,2]
[363308117,1748667305935,-300.0,0.00015999,2]
[363308118,1748667305957,-19129.0,0.00016,2]
[363308119,1748667313067,160.746744,0.00013699,2]
[363308122,1748667655938,-129.41903883,0.00016,2]
[363308123,1748667655960,-4453.58096117,0.00016,2]
[363308124,1748668030128,-118.41903883,0.00016,2]
[363308125,1748668030153,-355.68679219,0.00016488,2]
[363308126,1748668030174,-479.27460499,0.00016841,2]
[363308127,1748668030195,-304.55430851,0.00016899,2]
[363308128,1748668030219,-300.0,0.00016994,2]
[363308129,1748668030241,-300.0,0.00016995,2]
[363308130,1748668030265,-500.0,0.00016995,2]
[363308131,1748668030288,-500.0,0.00016995,2]
[363308132,1748668030309,-500.0,0.00016995,2]
[363308133,1748668030333,-490.54370378,0.00016995,2]
[363308134,1748668030353,-500.0,0.00016995,2]
[363308135,1748668030376,-500.0,0.00016995,2]
[363308136,1748668030400,-470.67776388,0.00016995,2]
[363308137,1748668030423,-178.4529345,0.00016995,2]
[363308138,1748668030444,-500.0,0.00016995,2]
[363308139,1748668030465,-615.90127479,0.00016995,2]
[363308140,1748668030484,-403.0713649,0.00016995,2]
[363308141,1748668030504,-1067.66893938,0.00016996,2]
[363308142,1748668038143,-2495.68332987,0.00016996,2]
[363308143,1748668042097,-4483.72601267,0.00016996,2]
[363308144,1748668042119,-430.0,0.00016996,2]
[363308145,1748668042142,-430.0,0.00016996,2]
[363308146,1748668042166,-403.43755733,0.00016996,2]
[363308147,1748668042197,-26.56244267,0.00016996,2]
[363308148,1748668042219,-430.0,0.00016996,2]
[363308149,1748668042241,-430.0,0.00016996,2]
[363308150,1748668042263,-430.0,0.00016996,2]
[363308151,1748668042287,-500.0,0.00016996,2]
[363308152,1748668042310,-500.0,0.00016996,2]
[363308153,1748668042336,-500.0,0.00016996,2]
[363308154,1748668042357,-333.9522851,0.00016996,2]
[363308155,1748668042381,-340.22335387,0.00016996,2]
[363308156,1748668042407,-500.0,0.00016996,2]
[363308157,1748668042431,-500.0,0.00016996,2]
[363308158,1748668042454,-500.0,0.00016996,2]
[363308159,1748668042478,-500.0,0.00016996,2]
[363308160,1748668042502,-500.0,0.00016996,2]
[363308161,1748668042539,-500.0,0.00016996,2]
[363308162,1748668042562,-1475.63,0.00016996,2]
[363308163,1748668042585,-593.85449236,0.00016996,2]
[363308164,1748668042606,-430.0,0.00016996,2]
[363308165,1748668042626,-400.0,0.00016996,2]
[363308166,1748668042648,-430.0,0.00016996,2]
[363308167,1748668042672,-430.0,0.00016996,2]
[363308168,1748668042695,-430.0,0.00016996,2]
[363308169,1748668042716,-430.0,0.00016997,2]
[363308170,1748668042737,-430.0,0.00016997,2]
[363308171,1748668042756,-410.34342262,0.00016997,2]
[363308172,1748668042776,-430.0,0.00016997,2]
[363308173,1748668042797,-430.0,0.00016997,2]
[363308174,1748668042817,-430.0,0.00016997,2]
[363308175,1748668042837,-453.90181523,0.00016997,2]
[363308176,1748668042857,-415.83528251,0.00016997,2]
[363308177,1748668042878,-430.0,0.00016997,2]
[363308178,1748668042899,-430.0,0.00016997,2]
[363308179,1748668042921,-430.0,0.00016997,2]
[363308180,1748668042941,-302.06786946,0.00016997,2]
[363308181,1748668054131,-400.0,0.00016995,2]
[363308182,1748668054153,-462.5465889,0.00016996,2]
[363308183,1748668054178,-767.25734715,0.00016996,2]
[363308184,1748668116537,-200.0,0.00023407,120]
[363308185,1748668116565,-200.0,0.00023408,120]
[363308186,1748668116592,-200.0,0.00023439,120]
[363308187,1748668116618,-693.50609788,0.000235,120]
[363308188,1748668116648,-200.0,0.00023654,120]
[363308189,1748668116684,-500.0,0.00024,120]
[363308190,1748668116711,-5000.0,0.00024,120]
[363308191,1748668116744,-200.0,0.00024321,120]
[363308192,1748668116769,-22788.0,0.00024331,120]
[363308193,1748668116816,-0.25123198,0.000246,120]
[363308194,1748668116841,-152.43385232,0.000246,120]
[363308195,1748668154094,-400.0,0.00016995,2]
[363308196,1748668154116,-300.0,0.00016995,2]
[363308197,1748668154136,-4867.0,0.00016995,2]
[363308198,1748668154158,-828.62265285,0.00016996,2]
[363308199,1748668154179,-430.0,0.00016996,2]
[363308200,1748668154200,-606.84,0.00016996,2]
[363308201,1748668154222,-2064.51,0.00016996,2]
[363308202,1748668154243,-430.0,0.00016996,2]
[363308203,1748668154263,-430.0,0.00016996,2]
[363308204,1748668154283,-430.0,0.00016996,2]
[363308205,1748668154303,-910.53,0.00016996,2]
[363308206,1748668154324,-218.96419599,0.00016996,2]
[363308207,1748668154345,-186.4947705,0.00016996,2]
[363308208,1748668154366,-875.57,0.00016996,2]
[363308209,1748668154386,-127.93213054,0.00016997,2]
[363308210,1748668154406,-430.0,0.00016997,2]
[363308211,1748668154428,-450.02466814,0.00016997,2]
[363308212,1748668154448,-430.0,0.00016997,2]
[363308213,1748668154468,-510.75374426,0.00016997,2]
[363308214,1748668154488,-430.0,0.00016997,2]
[363308215,1748668154509,-400.0,0.00016997,2]
[363308216,1748668154529,-309.580068,0.00016997,2]
[363308217,1748668154549,-430.0,0.00016997,2]
[363308218,1748668154569,-430.0,0.00016997,2]
[363308219,1748668154590,-408.98280923,0.00016997,2]
[363308220,1748668154610,-430.0,0.00016997,2]
[363308221,1748668154630,-430.0,0.00016997,2]
[363308222,1748668154651,-400.0,0.00016997,2]
[363308223,1748668154672,-400.0,0.00016997,2]
[363308224,1748668154693,-430.0,0.00016997,2]
[363308225,1748668154714,-400.0,0.00016997,2]
[363308226,1748668154734,-400.0,0.00016997,2]
[363308227,1748668154756,-430.0,0.00016997,2]
[363308228,1748668154777,-400.0,0.00016997,2]
[363308229,1748668154797,-400.0,0.00016997,2]
[363308230,1748668154818,-411.35613136,0.00016997,2]
[363308231,1748668154838,-400.0,0.00016997,2]
[363308232,1748668154859,-430.0,0.00016997,2]
[363308233,1748668154880,-400.0,0.00016997,2]
[363308234,1748668154903,-430.0,0.00016997,2]
[363308235,1748668154924,-430.0,0.00016997,2]
[363308236,1748668154945,-400.0,0.00016997,2]
[363308237,1748668154966,-430.0,0.00016997,2]
[363308238,1748668154986,-430.0,0.00016997,2]
[363308239,1748668155008,-430.0,0.00016997,2]
[363308240,1748668155033,-400.0,0.00016997,2]
[363308241,1748668155055,-430.0,0.00016997,2]
[363308242,1748668155075,-411.86663385,0.00016997,2]
[363308243,1748668155097,-400.0,0.00016997,2]
[363308244,1748668155119,-409.77775667,0.00016997,2]
[363308245,1748668155140,-503.76271534,0.00016997,2]
[363308246,1748668155160,-430.0,0.00016997,2]
[363308247,1748668155194,-515.40365239,0.00016997,2]
[363308248,1748668155216,-430.0,0.00016997,2]
[363308249,1748668155237,-430.0,0.00016997,2]
[363308250,1748668155260,-505.39024693,0.00016997,2]
[363308251,1748668155281,-419.04785281,0.00016997,2]
[363308252,1748668155302,-407.50993408,0.00016997,2]
[363308253,1748668155324,-384.78349119,0.00016997,2]
[363308254,1748668155345,-400.0,0.00016997,2]
[363308255,1748668155367,-430.0,0.00016997,2]
[363308256,1748668155388,-406.13793147,0.00016997,2]
[363308257,1748668155410,-430.0,0.00016997,2]
[363308258,1748668155433,-433.3080484,0.00016997,2]
[363308259,1748668155455,-430.0,0.00016997,2]
[363308260,1748668155479,-430.0,0.00016997,2]
[363308261,1748668155500,-431.77385087,0.00016997,2]
[363308262,1748668155523,-430.0,0.00016997,2]
[363308263,1748668155544,-400.0,0.00016997,2]
[363308264,1748668155566,-430.0,0.00016997,2]
[363308265,1748668155589,-430.0,0.00016997,2]
[363308266,1748668155612,-430.0,0.00016997,2]
[363308267,1748668155637,-430.0,0.00016997,2]
[363308268,1748668155657,-426.53720449,0.00016997,2]
[363308269,1748668155680,-430.0,0.00016997,2]
[363308270,1748668155702,-430.0,0.00016997,2]
[363308271,1748668155723,-430.0,0.00016997,2]
[363308272,1748668155745,-430.0,0.00016997,2]
[363308273,1748668155767,-416.58471207,0.00016997,2]
[363308274,1748668155789,-379.19432624,0.00016997,2]
[363308275,1748668155810,-430.0,0.00016997,2]
[363308276,1748668155833,-430.0,0.00016997,2]
[363308277,1748668155855,-430.0,0.00016997,2]
[363308278,1748668155881,-430.0,0.00016997,2]
[363308279,1748668155902,-430.0,0.00016997,2]
[363308280,1748668155923,-384.2046547,0.00016997,2]
[363308281,1748668155945,-430.0,0.00016997,2]
[363308282,1748668155967,-430.0,0.00016997,2]
[363308283,1748668155988,-430.0,0.00016997,2]
[363308284,1748668156017,-430.0,0.00016997,2]
[363308285,1748668156039,-376.30547701,0.00016997,2]
[363308286,1748668156061,-430.0,0.00016997,2]
[363308287,1748668156082,-500.0,0.00016997,2]
[363308288,1748668156105,-430.0,0.00016997,2]
[363308289,1748668156125,-430.0,0.00016997,2]
[363308290,1748668156147,-430.0,0.00016997,2]
[363308291,1748668156169,-311.13,0.00016997,2]
[363308292,1748668156191,-430.0,0.00016997,2]
[363308293,1748668156213,-430.0,0.00016997,2]
[363308294,1748668156234,-421.68695612,0.00016997,2]
[363308295,1748668156255,-430.0,0.00016997,2]
[363308296,1748668156279,-430.0,0.00016997,2]
[363308297,1748668156482,-430.0,0.00016997,2]
[363308298,1748668156504,-430.0,0.00016997,2]
[363308299,1748668156525,-430.0,0.00016997,2]
[363308300,1748668156546,-430.0,0.00016997,2]
[363308301,1748668156570,-430.0,0.00016997,2]
[363308302,1748668156590,-470.0,0.00016997,2]
[363308303,1748668156611,-430.0,0.00016997,2]
[363308304,1748668156632,-430.0,0.00016997,2]
[363308305,1748668156653,-430.0,0.00016997,2]
[363308306,1748668156673,-430.0,0.00016997,2]
[363308307,1748668156694,-430.0,0.00016997,2]
[363308308,1748668156715,-384.20434416,0.00016997,2]
[363308309,1748668156735,-430.0,0.00016997,2]
[363308310,1748668156757,-430.0,0.00016997,2]
[363308311,1748668156779,-155.0,0.00016997,2]
[363308312,1748668156800,-404.635832,0.00016997,2]
[363308313,1748668156822,-430.0,0.00016997,2]
[363308314,1748668156842,-430.0,0.00016997,2]
[363308315,1748668156863,-430.0,0.00016997,2]
[363308316,1748668156884,-430.0,0.00016997,2]
[363308317,1748668156905,-430.0,0.00016997,2]
[363308318,1748668156926,-470.0,0.00016997,2]
[363308319,1748668156946,-430.0,0.00016997,2]
[363308320,1748668156966,-470.0,0.00016997,2]
[363308321,1748668156987,-430.0,0.00016997,2]
[363308322,1748668157009,-430.0,0.00016997,2]
[363308323,1748668157033,-430.0,0.00016997,2]
[363308324,1748668157055,-430.0,0.00016997,2]
[363308325,1748668157076,-430.0,0.00016997,2]
[363308326,1748668157098,-405.31662157,0.00016997,2]
[363308327,1748668157120,-430.0,0.00016997,2]
[363308328,1748668157141,-430.0,0.00016997,2]
[363308329,1748668157162,-430.0,0.00016997,2]
[363308330,1748668157184,-430.0,0.00016997,2]
[363308331,1748668157208,-430.0,0.00016997,2]
[363308332,1748668157234,-430.0,0.00016997,2]
[363308333,1748668157257,-500.0,0.00016997,2]
[363308334,1748668157279,-583.76659957,0.00016997,2]
[363308335,1748668157303,-500.0,0.00016997,2]
[363308336,1748668157325,-500.0,0.00016997,2]
[363308337,1748668157359,-430.0,0.00016997,2]
[363308338,1748668157385,-500.0,0.00016997,2]
[363308339,1748668157408,-500.0,0.00016997,2]
[363308340,1748668157432,-500.0,0.00016997,2]
[363308341,1748668157455,-500.0,0.00016997,2]
[363308342,1748668157479,-153.85449236,0.00016997,2]
[363308343,1748668157500,-362.15540799,0.00016997,2]
[363308344,1748668157523,-446.98,0.00016997,2]
[363308345,1748668157544,-430.0,0.00016997,2]
[363308346,1748668157567,-430.0,0.00016997,2]
[363308347,1748668157588,-552.75987912,0.00016997,2]
[363308348,1748668157610,-450.0,0.00016997,2]
[363308349,1748668157631,-223.49018546,0.00016997,2]
[363308350,1748668157652,-430.0,0.00016997,2]
[363308351,1748668157674,-430.0,0.00016997,2]
[363308352,1748668157696,-430.0,0.00016997,2]
[363308353,1748668157718,-430.0,0.00016997,2]
[363308354,1748668157740,-430.0,0.00016997,2]
[363308355,1748668157763,-430.0,0.00016997,2]
[363308356,1748668157786,-430.0,0.00016997,2]
[363308357,1748668157808,-430.0,0.00016997,2]
[363308358,1748668157831,-401.6777489,0.00016998,2]
[363308359,1748668157853,-430.0,0.00016998,2]
[363308360,1748668157876,-621.4327951,0.00016998,2]
[363308361,1748668157898,-376.80851865,0.00016998,2]
[363308362,1748668157920,-430.0,0.00016998,2]
[363308363,1748668157941,-450.0,0.00016998,2]
[363308364,1748668157963,-430.0,0.00016998,2]
[363308365,1748668157984,-403.41986618,0.00016998,2]
[363308366,1748668158005,-400.0,0.00016998,2]
[363308367,1748668158031,-400.0,0.00016998,2]
[363308368,1748668158059,-430.0,0.00016998,2]
[363308369,1748668158083,-430.78,0.00016998,2]
[363308370,1748668158106,-430.0,0.00016998,2]
[363308371,1748668158129,-430.0,0.00016998,2]
[363308372,1748668158151,-494.91539089,0.00016998,2]
[363308373,1748668158173,-430.0,0.00016998,2]
[363308374,1748668158195,-430.0,0.00016998,2]
[363308375,1748668158218,-430.0,0.00016998,2]
[363308376,1748668158242,-314.95346524,0.00016998,2]
[363308377,1748668158587,-1932.71066644,0.00016135,2]
[363308378,1748668163137,-67.28933356,0.00016135,2]
[363308379,1748668163160,-430.0,0.00016995,2]
[363308380,1748668163185,-430.0,0.00016996,2]
[363308381,1748668163205,-393.11910756,0.00016997,2]
[363308382,1748668163226,-430.0,0.00016997,2]
[363308383,1748668163246,-430.0,0.00016997,2]
[363308384,1748668163268,-430.0,0.00016997,2]
[363308385,1748668163288,-430.0,0.00016997,2]
[363308386,1748668163309,-115.04653476,0.00016998,2]
[363308387,1748668163329,-430.0,0.00016998,2]
[363308388,1748668163350,-233.61538332,0.00016998,2]
[363308389,1748668163370,-430.0,0.00016998,2]
[363308390,1748668163391,-430.0,0.00016998,2]
[363308391,1748668163567,-430.0,0.00016998,2]
[363308392,1748668163590,-430.0,0.00016998,2]
[363308393,1748668163613,-430.0,0.00016998,2]
[363308394,1748668163634,-430.0,0.00016998,2]
[363308395,1748668163659,-888.24,0.00016998,2]
[363308396,1748668163680,-430.0,0.00016998,2]
[363308397,1748668163701,-430.0,0.00016998,2]
[363308398,1748668163722,-430.0,0.00016998,2]
[363308399,1748668163747,-430.0,0.00016998,2]
[363308400,1748668163769,-430.0,0.00016998,2]
[363308401,1748668163792,-940.68,0.00016998,2]
[363308402,1748668163812,-430.0,0.00016998,2]
[363308403,1748668163832,-430.0,0.00016998,2]
[363308404,1748668163852,-504.95529508,0.00016999,2]
[363308405,1748668163873,-402.17366004,0.00016999,2]
[363308406,1748668163892,-159.76949167,0.00016999,2]
[363308407,1748668163912,-402.71754168,0.00016999,2]
[363308408,1748668163932,-420.83082146,0.00016999,2]
[363308409,1748668163952,-413.76143,0.00016999,2]
[363308410,1748668163972,-430.0,0.00016999,2]
[363308411,1748668163991,-316.38323503,0.00016999,2]
[363308412,1748668164011,-401.8984415,0.00016999,2]
[363308413,1748668164035,-430.0,0.00016999,2]
[363308414,1748668164054,-417.43395108,0.00016999,2]
[363308415,1748668164075,-370.0,0.00016999,2]
[363308416,1748668164097,-430.0,0.00016999,2]
[363308417,1748668164119,-430.0,0.00016999,2]
[363308418,1748668164140,-430.0,0.00016999,2]
[363308419,1748668164161,-356.28136341,0.00016999,2]